bitfinex-derivatives/quotes_BTCF0:USTF0_20251120
["timestamp","ask_amount","ask_price","bid_price","bid_amount"]
[1763649479666,0.36299803,91503.0,91494.0,0.03982]
[1763649479853,0.36299803,91503.0,91493.0,0.3608]
[1763649479854,0.0671,91494.0,91493.0,0.3608]
[1763649480064,0.00219803,91494.0,91493.0,0.49937]
[1763649480259,0.00219803,91494.0,91493.0,0.3608]
[1763649480469,0.00016394,91506.0,91505.0,0.13857]
[1763649480674,0.03856163,91526.0,91523.0,0.0814175]
[1763649480964,0.23310838,91547.0,91520.0,0.03982]
[1763649480965,0.05827709,91555.0,91543.0,0.06809]
[1763649481164,0.02589068,91554.0,91537.0,0.3608]
[1763649481367,0.3608,91549.0,91525.0,0.3608]
[1763649481559,0.00219803,91554.0,91525.0,0.3608]
[1763649481560,0.3608,91533.0,91525.0,0.3608]
[1763649481757,0.00219803,91526.0,91520.0,0.00016384]
[1763649481970,0.0236816,91525.0,91520.0,0.00016384]
[1763649482268,0.02587963,91524.0,91523.0,0.13653]
[1763649482565,0.00219803,91524.0,91523.0,0.13653]
[1763649482961,0.00016337,91538.0,91537.0,0.13156]
[1763649483155,0.05827709,91565.0,91540.0,0.0388]
[1763649483364,0.02587008,91564.0,91549.0,0.0109343]
[1763649483555,0.3608,91560.0,91545.0,0.3608]
[1763649483760,0.02587008,91559.0,91545.0,0.3608]
[1763649483959,0.3608,91552.0,91534.0,0.3608]
[1763649484169,0.00219803,91551.0,91550.0,0.13156]
[1763649484359,0.19520182,91569.0,91550.0,0.49236]
[1763649484560,0.3608,91561.0,91543.0,0.3608]
[1763649484756,0.02585567,91560.0,91534.0,0.00016384]
[1763649484961,0.3608,91537.0,91534.0,0.00016384]
[1763649485166,0.10756,91542.0,91536.0,0.13156]
[1763649485480,0.00219803,91542.0,91534.0,0.00016384]
[1763649485857,0.00219803,91542.0,91541.0,0.13156]
[1763649486459,0.00219803,91542.0,91534.0,0.00016384]
[1763649486959,0.00219803,91542.0,91510.0,0.3608]
[1763649486960,0.13594,91535.0,91510.0,0.3608]
[1763649487167,0.13594,91535.0,91476.0,0.03982]
[1763649487168,0.36299803,91511.0,91488.0,0.3608]
[1763649487467,0.36299803,91511.0,91476.0,0.03982]
[1763649487468,0.00219803,91511.0,91510.0,0.13156]
[1763649487773,0.00219803,91511.0,91504.0,0.3608]
[1763649487969,0.00219803,91511.0,91510.0,0.13156]
[1763649488175,0.3608,91540.0,91504.0,0.3608]
[1763649488176,0.00016394,91517.0,91516.0,0.13156]
[1763649488471,0.00016394,91526.0,91525.0,0.13156]
[1763649488678,0.00236197,91526.0,91525.0,0.3608]
[1763649488871,0.00236197,91526.0,91507.0,0.36096394]
[1763649489068,0.3608,91524.0,91507.0,0.36096394]
[1763649489265,0.00219803,91508.0,91507.0,0.36096394]
[1763649489463,0.00219803,91508.0,91507.0,0.42408394]
[1763649489664,0.13813803,91508.0,91507.0,0.00016394]
[1763649489968,0.2490186,91508.0,91493.0,0.3608]
[1763649490171,0.02366658,91507.0,91506.0,0.13156]
[1763649490379,0.3608,91527.0,91507.0,0.13156]
[1763649490380,0.1076,91522.0,91507.0,0.13156]
[1763649490569,0.02587463,91521.0,91509.0,0.3608]
[1763649490870,0.0236766,91520.0,91516.0,0.0109383]
[1763649491175,0.05827709,91537.0,91509.0,0.3608]
[1763649491176,0.1076,91542.0,91525.0,0.1424973]
[1763649491474,0.3608,91558.0,91518.0,0.3608]
[1763649491475,0.3608,91558.0,91543.0,0.13156]
[1763649491675,0.02588484,91557.0,91543.0,0.5032951]
[1763649491877,0.02368681,91556.0,91544.0,0.010935]
[1763649492063,0.02368681,91556.0,91543.0,0.3608]
[1763649492064,0.00219803,91555.0,91543.0,0.3608]
[1763649492264,0.3608,91550.0,91540.0,0.00016384]
[1763649492463,0.00219803,91541.0,91540.0,0.00016384]
[1763649492665,0.13813803,91541.0,91517.0,0.3996]
[1763649492873,0.3608,91534.0,91518.0,0.0109381]
[1763649493067,0.36299803,91534.0,91533.0,0.06312]
[1763649493373,0.7866793,91534.0,91483.0,0.3608]
[1763649493564,0.3608,91504.0,91494.0,0.0109409]
[1763649493767,0.00219803,91503.0,91499.0,0.00016384]
[1763649493968,0.00219803,91503.0,91502.0,0.13156]
[1763649494474,0.3608,91513.0,91512.0,0.13156]
[1763649494776,0.38669838,91513.0,91499.0,0.00016384]
[1763649494972,0.02370035,91512.0,91499.0,0.00016384]
[1763649495173,0.00219803,91500.0,91499.0,0.13172384]
[1763649495676,0.00219803,91500.0,91499.0,0.00016384]
[1763649496080,0.02591183,91500.0,91499.0,0.00016384]
[1763649497574,0.09222183,91500.0,91499.0,0.00016384]
[1763649497767,0.16185183,91500.0,91499.0,0.00016384]
[1763649497968,0.16185183,91500.0,91483.0,0.3608]
[1763649498165,0.3608,91496.0,91483.0,0.3608]
[1763649498367,0.00219803,91484.0,91483.0,0.3608]
[1763649498567,0.00219803,91484.0,91474.0,0.00012619]
[1763649498568,0.02594693,91484.0,91474.0,0.00012619]
[1763649498777,0.0237489,91483.0,91474.0,0.00012619]
[1763649499087,0.00219803,91475.0,91474.0,0.00012619]
[1763649499270,0.02593587,91475.0,91474.0,0.00012619]
[1763649499467,0.16187587,91475.0,91474.0,0.00012619]
[1763649500372,0.13594,91470.0,91469.0,0.00016394]
[1763649500572,0.26946087,91470.0,91469.0,0.00016394]
[1763649500770,0.13352087,91470.0,91469.0,0.00016394]
[1763649500973,0.26946087,91470.0,91451.0,0.3608]
[1763649501282,0.3608,91460.0,91451.0,0.3608]
[1763649501480,0.00219803,91452.0,91451.0,0.3608]
[1763649501677,0.0001148,91459.0,91458.0,0.13156]
[1763649501881,0.0001148,91459.0,91451.0,0.3608]
[1763649501882,0.02601559,91459.0,91451.0,0.3608]
[1763649502084,0.00231283,91459.0,91451.0,0.3608]
[1763649502275,0.00231283,91459.0,91458.0,0.13156]
[1763649502982,0.00231283,91459.0,91451.0,0.3608]
[1763649503577,0.00231283,91459.0,91458.0,0.13156]
[1763649504379,0.00016394,91468.0,91467.0,0.1425042]
[1763649504587,0.00016394,91468.0,91467.0,0.49236]
[1763649504780,0.00236197,91468.0,91458.0,0.001]
[1763649504990,0.3608,91462.0,91451.0,0.3608]
[1763649505283,0.13594,91450.0,91446.0,0.00027339]
[1763649505482,0.24577803,91450.0,91446.0,0.00027339]
[1763649506374,0.10983803,91450.0,91446.0,0.00027339]
[1763649506574,0.00219803,91450.0,91446.0,0.00027339]
[1763649506776,0.00219803,91450.0,91449.0,0.13172394]
[1763649507081,0.3608,91471.0,91460.0,0.13156]
[1763649507383,0.00219803,91467.0,91455.0,0.0388]
[1763649507583,0.3608,91460.0,91455.0,0.0388]
[1763649507783,0.3608,91460.0,91449.0,0.00016394]
[1763649507784,0.00219803,91456.0,91449.0,0.00016394]
[1763649507973,0.3608,91451.0,91449.0,0.00016394]
[1763649508177,0.06850803,91450.0,91449.0,0.00016394]
[1763649508388,0.00219803,91450.0,91449.0,0.00016394]
[1763649508883,0.10979803,91450.0,91449.0,0.06328394]
[1763649509085,0.10979803,91450.0,91449.0,0.00016394]
[1763649510183,0.10979803,91450.0,91449.0,0.06428394]
[1763649510483,0.10979803,91450.0,91449.0,0.00116394]
[1763649510785,0.10979803,91450.0,91449.0,0.00016394]
[1763649511180,0.22654803,91450.0,91449.0,0.00016394]
[1763649511379,0.00219803,91450.0,91449.0,0.00016394]
[1763649511594,0.00219803,91450.0,91449.0,0.47464394]
[1763649511780,0.00219803,91450.0,91449.0,0.00016394]
[1763649513081,0.12199803,91450.0,91449.0,0.00016394]
[1763649513587,0.12199803,91450.0,91446.0,0.00027339]
[1763649513588,0.1198,91447.0,91446.0,0.00027339]
[1763649513775,0.1198,91432.0,91413.0,0.3608]
[1763649513982,0.00219803,91414.0,91413.0,0.47617]
[1763649514381,0.10756,91434.0,91433.0,0.05968]
[1763649514578,0.19738412,91434.0,91421.0,0.3608]
[1763649514781,0.19738412,91434.0,91404.0,0.3608]
[1763649514782,0.3608,91428.0,91414.0,0.00016403]
[1763649514984,0.00219803,91415.0,91414.0,0.11553403]
[1763649515789,0.00219803,91415.0,91414.0,0.12648463]
[1763649515982,0.00219803,91415.0,91414.0,0.11553403]
[1763649516490,0.3608,91427.0,91426.0,0.11537]
[1763649516691,0.00016403,91433.0,91432.0,0.11537]
[1763649516887,0.00016403,91433.0,91432.0,0.47617]
[1763649517098,0.3608,91448.0,91432.0,0.3608]
[1763649517282,0.00219803,91447.0,91432.0,0.3608]
[1763649517487,0.00219803,91447.0,91432.0,0.3717484]
[1763649517690,0.00219803,91447.0,91432.0,0.3608]
[1763649518391,0.00219803,91447.0,91432.0,0.3618]
[1763649518592,0.1198,91433.0,91410.0,0.3608]
[1763649518786,0.03408,91440.0,91371.0,0.0388]
[1763649518787,0.12199803,91415.0,91402.0,0.36087825]
[1763649518988,0.1198,91407.0,91402.0,7.825e-05]
[1763649519288,0.00219803,91407.0,91402.0,7.825e-05]
[1763649519480,0.10979803,91407.0,91406.0,0.11564351]
[1763649519788,0.00219803,91407.0,91406.0,0.11564351]
[1763649519992,0.10776403,91416.0,91406.0,0.11564351]
[1763649520189,0.00219803,91415.0,91406.0,0.00027351]
[1763649520784,0.00219803,91415.0,91410.0,0.010951]
[1763649520986,0.00016403,91416.0,91415.0,0.1263205]
[1763649521194,0.1076,91449.0,91444.0,0.05968]
[1763649521393,0.00219803,91448.0,91444.0,0.05968]
[1763649521592,0.00219803,91448.0,91435.0,0.3608]
[1763649522393,0.00219803,91448.0,91447.0,0.11537]
[1763649522597,0.00016403,91451.0,91450.0,0.11537]
[1763649522892,0.3608,91484.0,91452.0,0.0109459]
[1763649522893,0.1076,91469.0,91452.0,0.0109459]
[1763649523088,0.3608,91484.0,91460.0,0.3608]
[1763649523089,0.00219803,91468.0,91460.0,0.3608]
[1763649523286,0.3608,91466.0,91456.0,0.3608]
[1763649523495,0.00219803,91457.0,91448.0,0.3608]
[1763649523695,0.1198,91451.0,91450.0,0.002]
[1763649523997,0.00219803,91451.0,91450.0,0.002]
[1763649524383,0.00219803,91451.0,91448.0,0.3608]
[1763649524586,0.00219803,91451.0,91450.0,0.11537]
[1763649524794,0.00016403,91462.0,91450.0,0.1263162]
[1763649524997,0.00219803,91461.0,91457.0,0.3608]
[1763649525496,0.00219803,91461.0,91460.0,0.11537]
[1763649525703,0.1198,91444.0,91440.0,0.3608]
[1763649526000,0.1198,91444.0,91422.0,0.3608]
[1763649526001,0.02592594,91444.0,91422.0,0.3608]
[1763649526199,0.13136791,91443.0,91422.0,0.3608]
[1763649526498,0.00219803,91423.0,91422.0,0.47617]
[1763649526891,0.00016403,91432.0,91431.0,0.11537]
[1763649527100,0.00016403,91432.0,91431.0,0.47617]
[1763649527101,0.11000206,91432.0,91431.0,0.47617]
[1763649527288,0.13373646,91432.0,91431.0,0.47617]
[1763649527594,0.001,91443.0,91442.0,0.11537]
[1763649527804,0.00319803,91443.0,91431.0,0.3608]
[1763649528000,0.00219803,91443.0,91431.0,0.3608]
[1763649528195,0.00219803,91443.0,91442.0,0.05968]
[1763649528400,0.00319803,91443.0,91442.0,0.1263172]
[1763649528597,0.03855398,91462.0,91459.0,0.05968]
[1763649528797,0.3608,91469.0,91457.0,0.3608]
[1763649528798,0.00219803,91460.0,91457.0,0.3608]
[1763649529502,0.00219803,91460.0,91455.0,0.3608]
[1763649529699,0.00219803,91460.0,91459.0,0.11537]
[1763649529895,0.00219803,91460.0,91451.0,0.00016403]
[1763649530201,0.1198,91452.0,91451.0,0.00016403]
[1763649530397,0.12199803,91452.0,91431.0,0.003]
[1763649530603,0.3608,91445.0,91429.0,0.3608]
[1763649530801,0.00219803,91430.0,91429.0,0.3608]
[1763649530999,0.3608,91445.0,91429.0,0.47617]
[1763649531200,0.10983803,91444.0,91440.0,0.3608]
[1763649531401,0.10983803,91444.0,91443.0,0.11537]
[1763649532004,0.10983803,91444.0,91443.0,0.1263171]
[1763649532201,0.00016403,91451.0,91450.0,0.11537]
[1763649532406,0.001,91452.0,91451.0,0.11537]
[1763649532596,0.10764,91471.0,91470.0,0.11537]
[1763649533000,0.00219803,91471.0,91470.0,0.11537]
[1763649533609,0.1198,91467.0,91461.0,0.00016403]
[1763649533811,0.12199803,91462.0,91461.0,0.00016403]
[1763649534222,0.06219803,91462.0,91461.0,0.00016403]
[1763649534420,0.00219803,91462.0,91461.0,0.00016403]
[1763649534621,0.22959803,91462.0,91461.0,0.00016403]
[1763649535417,0.26839474,91462.0,91461.0,0.001]
[1763649535619,0.22959803,91462.0,91461.0,0.001]
[1763649536225,0.00219803,91462.0,91461.0,0.001]
[1763649536426,0.00219803,91462.0,91461.0,0.11637]
[1763649536617,0.00219803,91462.0,91461.0,0.001]
[1763649536928,0.00219803,91462.0,91456.0,0.3608]
[1763649537515,0.00219803,91462.0,91452.0,0.00016403]
[1763649538523,0.1198,91453.0,91452.0,0.00016403]
[1763649538715,0.1198,91441.0,91431.0,0.3608]
[1763649538916,0.00219803,91432.0,91431.0,0.47617]
[1763649539225,0.00219803,91432.0,91431.0,0.3608]
[1763649539817,0.00016403,91441.0,91431.0,0.47617]
[1763649540023,0.13345373,91440.0,91431.0,0.3608]
[1763649540224,0.0236957,91439.0,91431.0,0.3608]
[1763649540417,0.00219803,91432.0,91431.0,0.3608]
[1763649540617,0.12199803,91432.0,91422.0,0.00016403]
[1763649540821,0.02368887,91431.0,91422.0,0.00016403]
[1763649541125,0.1198,91429.0,91428.0,0.3608]
[1763649541324,0.14568637,91429.0,91428.0,0.3608]
[1763649541830,0.1198,91423.0,91422.0,0.00016403]
[1763649542017,0.1198,91423.0,91402.0,7.825e-05]
[1763649542018,0.1198,91407.0,91402.0,0.36087825]
[1763649542326,0.25320637,91407.0,91402.0,7.825e-05]
[1763649542626,0.24414637,91407.0,91402.0,7.825e-05]
[1763649543024,0.11074,91403.0,91402.0,7.825e-05]
[1763649543217,0.11074,91403.0,91366.0,0.00027363]
[1763649543218,0.11074,91398.0,91397.0,0.00010946]
[1763649543419,0.05506,91386.0,91385.0,0.3608]
[1763649543627,0.16477803,91386.0,91385.0,0.3608]
[1763649544119,0.16486767,91386.0,91385.0,0.3608]
[1763649544314,0.00228767,91386.0,91385.0,0.3608]
[1763649544526,0.00228767,91386.0,91385.0,0.47417]
[1763649544921,0.00228767,91386.0,91385.0,0.47517]
[1763649545121,0.00228767,91386.0,91385.0,0.3618]
[1763649545323,0.00228767,91386.0,91385.0,0.47517]
[1763649545530,0.00228767,91386.0,91385.0,0.3618]
[1763649545725,0.00228767,91386.0,91385.0,0.3628]
[1763649546028,0.11302767,91386.0,91385.0,0.3628]
[1763649546329,0.10980767,91386.0,91385.0,0.3628]
[1763649546516,0.00228767,91386.0,91385.0,0.3628]
[1763649546718,0.10980767,91386.0,91385.0,0.3628]
[1763649546918,0.22054767,91386.0,91385.0,0.3628]
[1763649547117,0.22054767,91386.0,91385.0,0.001]
[1763649547318,0.11074,91367.0,91358.0,0.3608]
[1763649547523,0.05734767,91367.0,91358.0,0.3608]
[1763649547820,0.00228767,91367.0,91358.0,0.3608]
[1763649548020,0.24422202,91367.0,91343.0,0.3608]
[1763649548231,0.00228767,91367.0,91343.0,0.3608]
[1763649548524,0.00228767,91367.0,91366.0,0.47417]
[1763649548525,0.0893121,91367.0,91366.0,0.47417]
[1763649548720,0.10980767,91367.0,91366.0,0.47417]
[1763649548921,0.10980767,91367.0,91366.0,0.3608]
[1763649549116,0.10980767,91367.0,91358.0,0.3608]
[1763649549314,0.19545646,91367.0,91358.0,0.3608]
[1763649549825,0.19545646,91367.0,91349.0,0.3608]
[1763649550136,0.08793646,91367.0,91357.0,0.3608]
[1763649550520,0.10756,91366.0,91357.0,0.3608]
[1763649550782,0.00219803,91358.0,91357.0,0.3608]
[1763649551244,0.11293803,91358.0,91357.0,0.3608]
[1763649551435,0.11293803,91358.0,91336.0,0.3608]
[1763649551618,0.00016413,91356.0,91354.0,0.3608]
[1763649551824,0.00227613,91355.0,91354.0,0.47417]
[1763649552626,0.00227613,91355.0,91354.0,0.3608]
[1763649552833,0.05733613,91355.0,91351.0,0.3608]
[1763649553028,0.10756,91354.0,91351.0,0.3608]
[1763649553218,0.00219803,91352.0,91351.0,0.3608]
[1763649553620,0.00219803,91352.0,91351.0,0.41432]
[1763649554031,7.81e-05,91355.0,91351.0,0.41432]
[1763649554032,7.81e-05,91355.0,91354.0,0.11337]
[1763649554225,4.13e-06,91356.0,91355.0,0.1243277]
[1763649554623,0.3608,91389.0,91369.0,0.11337]
[1763649554839,0.00219803,91388.0,91371.0,0.3717557]
[1763649555026,0.00219803,91388.0,91387.0,0.11337]
[1763649555329,0.05506,91383.0,91371.0,0.3608]
[1763649555531,0.47055803,91388.0,91353.0,0.46836]
[1763649555532,0.00219803,91372.0,91353.0,0.46836]
[1763649555721,0.10756,91371.0,91368.0,0.00016413]
[1763649555926,0.00219803,91369.0,91368.0,0.00016413]
[1763649556123,0.11074,91355.0,91353.0,0.3608]
[1763649556329,0.11293803,91355.0,91353.0,0.3608]
[1763649556536,0.11293803,91355.0,91341.0,0.3608]
[1763649556930,0.11293803,91355.0,91350.0,0.3608]
[1763649557333,0.05725803,91355.0,91350.0,0.3608]
[1763649557544,0.00219803,91355.0,91350.0,0.3608]
[1763649558627,0.10756,91354.0,91334.0,0.0001326]
[1763649558930,0.10975803,91353.0,91342.0,0.0109592]
[1763649559131,0.10975803,91353.0,91341.0,0.3608]
[1763649560231,0.10975803,91353.0,91341.0,0.3618]
[1763649560540,0.10975803,91353.0,91341.0,0.001]
[1763649560928,0.10975803,91353.0,91343.0,0.3608]
[1763649561135,0.1076,91352.0,91347.0,0.0109586]
[1763649561335,0.00219803,91351.0,91343.0,0.3608]
[1763649561523,0.00219803,91351.0,91341.0,0.001]
[1763649561524,0.11074,91342.0,91341.0,0.001]
[1763649561730,0.11293803,91342.0,91341.0,0.001]
[1763649561931,0.05725803,91342.0,91341.0,0.001]
[1763649562129,0.00219803,91342.0,91341.0,0.001]
[1763649562532,0.00219803,91342.0,91341.0,0.11437]
[1763649563035,0.00219803,91342.0,91341.0,0.11337]
[1763649563927,0.00219803,91342.0,91334.0,0.0001326]
[1763649563928,0.11074,91335.0,91334.0,0.0001326]
[1763649564138,0.11074,91335.0,91265.0,0.07828324]
[1763649564139,0.03061,91332.0,91310.0,0.3608]
[1763649564335,0.03494,91296.0,91252.0,0.0109699]
[1763649564533,0.00016431,91283.0,91254.0,0.0109697]
[1763649564840,0.00219803,91282.0,91272.0,0.3608]
[1763649565229,0.05506,91273.0,91272.0,0.3608]
[1763649565438,0.16485803,91273.0,91261.0,0.3608]
[1763649566032,0.16485803,91273.0,91262.0,0.0109688]
[1763649566235,0.16485803,91273.0,91261.0,0.3608]
[1763649566442,0.00219803,91273.0,91272.0,0.1243376]
[1763649566626,0.10979803,91273.0,91272.0,0.1243376]
[1763649567030,0.00219803,91273.0,91272.0,0.1243376]
[1763649567225,0.3608,91307.0,91272.0,0.1243376]
[1763649567226,0.08626769,91296.0,91295.0,0.11337]
[1763649567430,0.00073267,91296.0,91295.0,0.11556803]
[1763649567634,0.00073267,91296.0,91282.0,0.3608]
[1763649567828,0.3608,91289.0,91282.0,0.36299803]
[1763649568034,0.3608,91289.0,91282.0,0.00219803]
[1763649568035,0.05579267,91283.0,91282.0,0.00219803]
[1763649568432,0.10837267,91283.0,91282.0,0.00219803]
[1763649568944,0.00073267,91283.0,91282.0,0.00219803]
[1763649569127,0.00016431,91292.0,91283.0,0.0109663]
[1763649569436,0.00016431,91292.0,91291.0,0.05372803]
[1763649569639,0.00016431,91292.0,91291.0,0.00219803]
[1763649569936,0.00016431,91292.0,91278.0,0.3608]
[1763649570242,0.00016431,91292.0,91279.0,0.00219803]
[1763649570845,0.22586642,91290.0,91279.0,0.00219803]
[1763649571044,0.10764,91289.0,91279.0,0.00219803]
[1763649571235,0.10764,91288.0,91279.0,0.00219803]
[1763649571437,0.10254,91274.0,91267.0,0.3608]
[1763649571638,0.10254,91268.0,91259.0,0.3608]
[1763649571833,0.10764,91267.0,91259.0,0.3608]
[1763649572238,0.05238,91260.0,91259.0,0.3608]
[1763649572448,0.05238,91260.0,91259.0,0.36299803]
[1763649572940,0.10485,91260.0,91259.0,0.36299803]
[1763649573145,0.10485,91260.0,91250.0,0.3608]
[1763649573146,0.46565,91260.0,91250.0,0.3608]
[1763649573341,0.81107714,91260.0,91250.0,0.3608]
[1763649573544,0.81107714,91260.0,91239.0,0.3608]
[1763649573742,0.81107714,91260.0,91246.0,0.00247202]
[1763649573953,0.3608,91249.0,91246.0,0.00247202]
[1763649574142,0.10376,91247.0,91246.0,0.00027399]
[1763649574334,0.10376,91247.0,91231.0,0.3608]
[1763649574541,0.05129,91228.0,91220.0,0.3608]
[1763649574737,0.15893,91228.0,91220.0,0.3608]
[1763649575048,0.10764,91228.0,91227.0,0.00229664]
[1763649575241,0.2114,91228.0,91227.0,9.861e-05]
[1763649575438,0.2114,91228.0,91206.0,0.00027411]
[1763649575439,0.03125,91220.0,91206.0,0.00027411]
[1763649575640,0.25711642,91220.0,91207.0,0.00219803]
[1763649575841,0.3608,91221.0,91207.0,0.00219803]
[1763649576045,0.05129,91208.0,91207.0,0.00219803]
[1763649576247,0.10768,91208.0,91207.0,0.00219803]
[1763649576441,0.00011659,91208.0,91207.0,0.05530803]
[1763649576645,0.0001644,91222.0,91207.0,0.05530803]
[1763649576646,0.0001644,91222.0,91221.0,0.10674]
[1763649576945,0.10768,91231.0,91227.0,0.0109729]
[1763649577143,0.3608,91248.0,91230.0,0.3608]
[1763649577338,0.3608,91248.0,91207.0,0.001]
[1763649577339,0.10376,91212.0,91211.0,0.3608]
[1763649577536,0.10768,91214.0,91212.0,0.00219803]
[1763649577937,0.10768,91213.0,91212.0,0.00219803]
[1763649578140,0.10768,91213.0,91212.0,0.10893803]
[1763649578336,0.10768,91213.0,91212.0,0.00219803]
[1763649578846,0.05129,91212.0,91211.0,0.3608]
[1763649579048,0.10376,91212.0,91211.0,0.3608]
[1763649579253,0.19755462,91213.0,91204.0,0.0001644]
[1763649579254,0.10376,91208.0,91204.0,0.0001644]
[1763649579444,0.10376,91205.0,91204.0,0.0001644]
[1763649579640,0.3608,91207.0,91204.0,0.0001644]
[1763649579641,0.3608,91207.0,91204.0,0.00236243]
[1763649579848,0.19363462,91213.0,91204.0,0.00236243]
[1763649580042,0.10768,91217.0,91204.0,0.00236243]
[1763649580347,0.08580699,91217.0,91212.0,0.0109748]
[1763649580553,0.08580699,91217.0,91211.0,0.3608]
[1763649580554,0.3608,91230.0,91216.0,0.10893803]
[1763649580737,0.10768,91226.0,91221.0,0.46754]
[1763649580938,0.10768,91225.0,91221.0,0.41610803]
[1763649581149,0.08817845,91222.0,91221.0,0.36299803]
[1763649581351,0.1039244,91222.0,91221.0,0.36299803]
[1763649581751,0.0001644,91222.0,91221.0,0.36299803]
[1763649581956,0.1078844,91222.0,91221.0,0.46973803]
[1763649582456,0.0001644,91222.0,91221.0,0.46973803]
[1763649582642,0.1078844,91222.0,91221.0,0.46973803]
[1763649583251,0.0001644,91222.0,91221.0,0.48071173]
[1763649583449,0.3608,91250.0,91226.0,0.010973]
[1763649583645,0.44643556,91250.0,91240.0,0.3608]
[1763649583949,0.08563556,91250.0,91249.0,0.00219803]
[1763649584154,0.3608,91270.0,91249.0,0.00219803]
[1763649584348,0.10772,91269.0,91249.0,0.01316823]
[1763649584556,0.1078844,91269.0,91250.0,0.0001644]
[1763649584741,0.1078844,91269.0,91251.0,0.00219803]
[1763649585346,0.08758046,91269.0,91267.0,0.05311]
[1763649585546,0.08758046,91269.0,91268.0,0.00219803]
[1763649585849,0.19530046,91269.0,91268.0,0.00219803]
[1763649586048,0.19749849,91269.0,91259.0,0.3608]
[1763649586354,0.10376,91260.0,91259.0,0.3608]
[1763649586650,0.13720803,91260.0,91259.0,0.3608]
[1763649587159,0.39424803,91260.0,91237.0,0.3608]
[1763649587348,0.3608,91246.0,91238.0,0.00073]
[1763649587649,0.00219803,91246.0,91245.0,0.46754]
[1763649587857,0.10991803,91246.0,91245.0,0.36153]
[1763649588052,0.21367803,91246.0,91245.0,0.36153]
[1763649588245,0.21367803,91246.0,91236.0,0.0001644]
[1763649588441,0.21367803,91246.0,91237.0,0.00073]
[1763649588642,0.00219803,91246.0,91245.0,0.46754]
[1763649588950,0.0001644,91255.0,91254.0,0.10674]
[1763649589149,0.0001644,91255.0,91254.0,0.46827]
[1763649589552,0.00236243,91255.0,91254.0,0.46827]
[1763649590369,0.00236243,91255.0,91254.0,0.36253]
[1763649590555,0.10612243,91255.0,91254.0,0.36253]
[1763649590952,0.00236243,91255.0,91254.0,0.36153]
[1763649591149,0.00236243,91255.0,91254.0,0.36253]
[1763649591562,0.00236243,91255.0,91254.0,0.46927]
[1763649591760,0.0514544,91255.0,91254.0,0.00173]
[1763649591960,0.57253253,91255.0,91254.0,0.002]
[1763649592255,0.3608,91264.0,91254.0,0.47027]
[1763649592557,0.12587192,91269.0,91254.0,0.47027]
[1763649592558,0.00219803,91263.0,91254.0,0.36253]
[1763649592752,0.02857,91238.0,91237.0,0.3608]
[1763649593062,0.02857,91238.0,91237.0,0.00073]
[1763649593063,0.00219803,91238.0,91237.0,0.00073]
[1763649593358,0.00219803,91238.0,91237.0,0.05384]
[1763649593962,0.00219803,91238.0,91237.0,0.10747]
[1763649596056,0.0001644,91247.0,91246.0,0.10674]
[1763649596257,0.02680936,91247.0,91246.0,0.10747]
[1763649596955,0.02461133,91247.0,91246.0,0.10747]
[1763649597155,0.03845586,91267.0,91262.0,0.05311]
[1763649597361,0.00219803,91263.0,91262.0,0.10674]
[1763649597556,0.00219803,91263.0,91262.0,0.10747]
[1763649597557,0.0266465,91263.0,91262.0,0.10747]
[1763649597761,0.1304065,91263.0,91262.0,0.00073]
[1763649598463,0.0779365,91263.0,91262.0,0.00073]
[1763649598961,0.0779365,91263.0,91253.0,0.0001644]
[1763649599158,0.02444847,91262.0,91254.0,0.00073]
[1763649599465,0.10595803,91255.0,91254.0,0.00073]
[1763649599663,0.1304065,91255.0,91254.0,0.00073]
[1763649599856,0.1304065,91255.0,91253.0,0.0001644]
[1763649600057,0.02444847,91254.0,91253.0,0.0001644]
[1763649600353,0.16886236,91254.0,91253.0,0.0001644]
[1763649600553,0.16886236,91254.0,91192.0,0.0109772]
[1763649600554,0.3874465,91254.0,91222.0,0.3608]
[1763649600760,0.3874465,91254.0,91206.0,0.01966]
[1763649600761,0.03870852,91244.0,91242.0,0.05311]
[1763649600960,0.03870852,91246.0,91245.0,0.10674]
[1763649601150,0.3608,91264.0,91245.0,0.10674]
[1763649601151,0.03870058,91258.0,91253.0,0.10674]
[1763649601350,0.43850279,91272.0,91262.0,0.10674]
[1763649601351,0.03870058,91268.0,91262.0,0.10674]
[1763649601552,0.0001644,91274.0,91273.0,0.10674]
[1763649601852,0.0001644,91274.0,91273.0,0.05384]
[1763649601853,0.00236243,91274.0,91273.0,0.05384]
[1763649602061,0.00236243,91274.0,91260.0,0.3608]
[1763649602062,0.10376,91268.0,91260.0,0.3608]
[1763649602354,6.4e-07,91267.0,91266.0,0.09529]
[1763649602560,0.10039803,91267.0,91266.0,0.00073]
[1763649602865,0.00219803,91267.0,91266.0,0.09602]
[1763649603169,0.0001644,91274.0,91273.0,0.09529]
[1763649603357,0.0001644,91274.0,91273.0,0.45682]
[1763649603558,0.00236243,91274.0,91273.0,0.36153]
[1763649603754,0.10056243,91274.0,91273.0,0.00073]
[1763649604062,0.10056243,91274.0,91262.0,0.002]
[1763649604063,0.0982,91263.0,91262.0,0.002]
[1763649604256,0.0001644,91274.0,91273.0,0.04502]
[1763649604460,0.0001644,91274.0,91273.0,0.45682]
[1763649604770,0.05768379,91303.0,91273.0,0.76153]
[1763649604955,0.43850279,91306.0,91305.0,0.04502]
[1763649604956,0.10768,91306.0,91305.0,0.04502]
[1763649605161,0.00219803,91306.0,91305.0,0.04575]
[1763649605352,0.00219803,91306.0,91305.0,0.45682]
[1763649605558,0.00219803,91306.0,91305.0,0.00073]
[1763649605758,0.18907644,91306.0,91305.0,0.00073]
[1763649605965,0.10039803,91306.0,91296.0,0.36096431]
[1763649606158,0.10039803,91306.0,91297.0,0.00073]
[1763649606359,0.0982,91297.0,91296.0,0.00016431]
[1763649606661,0.10039803,91297.0,91296.0,0.00016431]
[1763649607367,0.15480803,91297.0,91296.0,0.00089431]
[1763649607556,0.20807803,91297.0,91296.0,0.00016431]
[1763649607764,0.20807803,91297.0,91278.0,1.8608]
[1763649608070,0.0982,91279.0,91278.0,0.3608]
[1763649608260,0.10987803,91279.0,91278.0,0.00073]
[1763649609173,0.20807803,91279.0,91278.0,0.00073]
[1763649609466,0.0982,91270.0,91269.0,0.00016431]
[1763649609659,0.46119803,91270.0,91251.0,0.3608]
[1763649609867,0.0982,91253.0,91252.0,0.00073]